bitfinex-derivatives/quotes_BNBF0:USTF0_20260221
["timestamp","ask_amount","ask_price","bid_price","bid_amount"]
[1771632002259,1.196965,626.48,625.95,1.702]
[1771632004563,1.196965,626.51,625.95,1.702]
[1771632004860,1.196965,626.53,625.95,2.899507]
[1771632005564,1.196965,626.56,625.98,1.197507]
[1771632006264,1.196965,626.57,625.99,1.197507]
[1771632006463,1.196965,626.58,626.0,1.197507]
[1771632006665,1.196965,626.65,626.07,1.197507]
[1771632006965,1.196965,626.66,626.07,1.197507]
[1771632007164,1.196965,626.65,626.07,1.197507]
[1771632007363,1.196965,626.65,625.96,1.596676]
[1771632007364,1.196965,626.66,626.06,1.197507]
[1771632008968,1.196965,626.67,626.07,1.197507]
[1771632009167,1.196965,626.73,626.12,1.197507]
[1771632009369,1.196965,626.74,626.11,1.197507]
[1771632009568,1.196965,626.75,626.12,1.197507]
[1771632010064,1.196965,626.75,626.13,1.546]
[1771632010364,1.196965,626.76,626.14,1.197507]
[1771632010568,1.196965,626.78,626.14,1.197507]
[1771632011264,1.196965,626.84,626.17,1.197507]
[1771632011467,1.196965,626.85,626.17,1.197507]
[1771632012265,1.196965,626.94,626.23,1.197507]
[1771632013470,1.196965,627.09,626.35,1.197507]
[1771632013666,1.196965,627.15,626.41,1.197507]
[1771632014266,1.196965,627.2,626.39,1.197507]
[1771632014470,1.196965,627.32,626.5,1.197507]
[1771632014666,1.196965,627.33,626.51,1.197507]
[1771632014866,1.196965,627.7,626.88,1.197507]
[1771632015064,1.196965,627.77,626.95,1.197507]
[1771632015271,5.585841,628.6,626.13,1.546]
[1771632015272,1.196965,628.23,627.13,1.197507]
[1771632015465,1.196965,628.09,626.98,1.197507]
[1771632015669,1.196965,628.06,626.96,1.197507]
[1771632016372,1.196965,628.14,626.89,1.197507]
[1771632017272,1.196965,628.21,626.83,1.197507]
[1771632017969,1.196965,628.21,626.84,1.197507]
[1771632018171,1.196965,628.29,626.82,1.197507]
[1771632018475,1.196965,628.35,626.87,1.197507]
[1771632018671,1.196965,628.39,626.91,1.197507]
[1771632018872,1.196965,628.39,626.8,1.596676]
[1771632018873,1.196965,628.4,626.92,1.197507]
[1771632019173,1.196965,628.4,626.8,1.596676]
[1771632019174,1.196965,628.45,626.96,1.197507]
[1771632019371,1.196965,628.55,626.95,1.197507]
[1771632019876,1.196965,628.7,627.1,1.197507]
[1771632020071,1.196965,628.72,627.12,1.197507]
[1771632020272,1.196965,628.78,627.06,1.197507]
[1771632020576,1.196965,628.79,627.06,1.197507]
[1771632021273,1.196965,628.84,627.01,1.197507]
[1771632021475,1.196965,628.85,627.02,1.197507]
[1771632021774,5.585841,629.69,626.33,3.99169]
[1771632021775,1.196965,628.93,627.09,1.197507]
[1771632022278,1.196965,628.98,627.05,1.197507]
[1771632022479,1.196965,628.98,627.04,1.197507]
[1771632023280,1.196965,629.02,627.0,1.197507]
[1771632023477,1.196965,629.03,627.0,1.197507]
[1771632024278,1.196965,629.07,626.95,1.197507]
[1771632025280,1.196965,629.1,626.92,1.197507]
[1771632025780,1.196965,629.11,626.93,1.197507]
[1771632026376,1.196965,629.15,626.9,1.197507]
[1771632027278,1.196965,629.17,626.87,1.197507]
[1771632027677,1.196965,629.13,626.82,1.197507]
[1771632027878,1.196965,629.13,625.96,5.588366]
[1771632027879,1.196965,629.04,626.74,1.197507]
[1771632028177,2.393931,629.27,626.06,3.99169]
[1771632028178,1.196965,629.05,626.72,1.197507]
[1771632028376,1.196965,629.05,626.61,1.596676]
[1771632028377,1.196965,629.11,626.77,1.197507]
[1771632028982,1.196965,629.13,626.79,1.197507]
[1771632029181,1.196965,629.14,626.77,1.197507]
[1771632029379,1.196965,629.15,626.77,1.197507]
[1771632030282,1.196965,629.15,626.75,1.197507]
[1771632030478,1.196965,629.11,626.7,1.197507]
[1771632030680,1.196965,629.19,626.78,1.197507]
[1771632031380,1.196965,629.21,626.77,1.197507]
[1771632032382,1.196965,629.22,626.76,1.197507]
[1771632033082,1.196965,629.21,626.75,1.197507]
[1771632033385,1.196965,628.93,626.46,1.197507]
[1771632033586,1.196965,628.86,626.39,1.197507]
[1771632034283,1.196965,628.78,626.32,1.197507]
[1771632034583,1.196965,628.69,626.23,1.197507]
[1771632035288,1.196965,628.68,626.24,1.197507]
[1771632035885,1.196965,628.64,626.2,1.197507]
[1771632036187,3.989886,629.32,626.12,1.197507]
[1771632036188,1.196965,628.56,626.12,1.197507]
[1771632036388,1.196965,628.51,626.1,1.197507]
[1771632036587,1.196965,628.5,626.08,1.197507]
[1771632037286,1.196965,628.49,626.1,1.197507]
[1771632037990,1.196965,628.48,626.09,1.197507]
[1771632038290,1.196965,628.39,626.03,1.197507]
[1771632038486,1.196965,628.38,626.01,1.197507]
[1771632039186,1.196965,628.37,626.02,1.197507]
[1771632039387,1.196965,628.35,626.02,1.197507]
[1771632039590,1.196965,628.34,626.01,1.197507]
[1771632040286,1.196965,628.33,626.02,1.197507]
[1771632040587,1.196965,628.33,626.03,1.197507]
[1771632041289,1.196965,628.31,626.04,1.197507]
[1771632042291,1.196965,628.29,626.06,1.197507]
[1771632043191,1.196965,628.28,626.07,1.197507]
[1771632043395,1.196965,628.27,626.08,1.197507]
[1771632044191,1.196965,628.26,626.09,1.197507]
[1771632044498,1.196965,628.27,626.13,1.197507]
[1771632045296,1.196965,628.26,626.14,1.197507]
[1771632046192,1.196965,628.25,626.15,1.197507]
[1771632046396,1.196965,628.24,626.16,1.197507]
[1771632047197,1.196965,628.23,626.17,1.197507]
[1771632047397,1.196965,628.21,626.19,1.197507]
[1771632048194,5.585841,629.11,626.21,1.197507]
[1771632048195,1.196965,628.18,626.21,1.197507]
[1771632049301,1.196965,628.15,626.24,1.197507]
[1771632050295,1.196965,628.12,626.27,1.197507]
[1771632051300,1.196965,628.09,626.3,1.197507]
[1771632052200,1.196965,628.07,626.33,1.197507]
[1771632053200,1.196965,628.04,626.35,1.197507]
[1771632054299,1.196965,628.01,626.38,1.197507]
[1771632055402,1.196965,627.99,626.41,1.197507]
[1771632056204,1.196965,627.96,626.43,1.197507]
[1771632057304,1.196965,627.91,626.42,1.197507]
[1771632057604,1.196965,627.9,626.42,1.197507]
[1771632058404,1.196965,627.86,626.42,1.197507]
[1771632059304,1.196965,627.85,626.43,1.197507]
[1771632061306,1.196965,627.86,626.42,1.197507]
[1771632062005,1.196965,627.85,626.41,1.197507]
[1771632062510,1.196965,627.83,626.39,1.197507]
[1771632063107,1.196965,627.83,626.38,1.197507]
[1771632063504,1.196965,627.82,626.36,1.197507]
[1771632064308,1.17548537,627.82,626.36,1.17338887]
[1771632065202,1.17548537,627.81,626.37,1.17338887]
[1771632067308,1.17548537,627.8,626.38,1.17338887]
[1771632067907,1.17548537,627.8,626.07,1.303]
[1771632067908,1.17548537,627.81,626.4,1.17338887]
[1771632068308,1.17548537,627.8,626.41,1.17338887]
[1771632069207,1.17548537,627.78,626.43,1.17338887]
[1771632070009,0.27748541,627.48,626.43,1.17338887]
[1771632070211,0.27748541,627.48,626.45,1.17338887]
[1771632071306,0.27748541,627.48,626.47,1.17338887]
[1771632072311,0.27748541,627.48,626.49,1.17338887]
[1771632073210,0.27748541,627.48,626.5,1.17338887]
[1771632073609,0.27748541,627.48,626.38,1.596676]
[1771632074409,0.27748541,627.48,626.27,2.395014]
[1771632074614,0.27748541,627.48,626.42,1.57413595]
[1771632074814,0.27748541,627.48,626.54,1.18060196]
[1771632075515,0.27748541,627.48,626.42,1.57413595]
[1771632075915,0.27748541,627.48,626.31,2.395014]
[1771632076416,0.27748541,627.48,626.07,1.303]
[1771632089430,1.19448454,627.41,626.55,2.383547]
[1771632089728,1.19448454,627.41,626.78,1.1917735]
[1771632090325,1.19448454,627.4,626.78,1.1917735]
[1771632092229,1.19448454,627.39,626.77,1.1917735]
[1771632094230,1.19448454,627.38,626.77,1.1917735]
[1771632095231,1.19448454,627.38,626.78,1.1917735]
[1771632098235,1.19448454,627.37,626.78,1.1917735]
[1771632099339,1.19448454,627.37,626.79,1.1917735]
[1771632101136,1.19448454,627.36,626.79,1.1917735]
[1771632101338,1.19448454,627.36,626.8,1.1917735]
[1771632103235,1.19448454,627.36,626.69,1.58903133]
[1771632103236,1.19448454,627.35,626.81,1.1917735]
[1771632104538,1.19448454,627.39,626.85,1.1917735]
[1771632106243,1.19448454,627.39,626.86,1.73]
[1771632109842,0.27748541,627.48,626.86,2.9217735]
[1771632112145,0.27748541,627.48,626.87,1.1917735]
[1771632119754,0.27748541,627.48,626.87,1.19353514]
[1771632121655,1.87013147,627.48,626.86,1.73]
[1771632121856,1.59264606,627.4,626.86,1.73]
[1771632122255,1.59264606,627.41,626.86,1.73]
[1771632122551,1.59264606,627.4,626.86,1.73]
[1771632122752,1.59264606,627.39,626.86,1.73]
[1771632123157,1.59264606,627.4,626.86,1.73]
[1771632124252,1.59264606,627.41,626.86,1.73]
[1771632125254,1.59264606,627.42,626.86,1.73]
[1771632127253,1.59264606,627.43,626.86,1.73]
[1771632127753,1.59264606,627.44,626.86,1.73]
[1771632131262,1.59264606,627.45,626.86,1.73]
[1771632136160,0.27748541,627.48,626.86,1.73]
[1771632136161,1.59264606,627.46,626.86,1.73]
[1771632139965,1.19361597,627.32,626.86,1.73]
[1771632146272,1.19361597,627.32,626.65,1.19353514]
[1771632147070,1.19361597,627.33,626.65,1.19353514]
[1771632147273,1.19361597,627.36,626.69,1.19353514]
[1771632149574,1.19361597,627.36,626.7,1.317]
[1771632149973,1.19369104,627.36,626.7,1.317]
[1771632151271,1.19369104,627.35,626.7,1.317]
[1771632151773,1.19369104,627.37,626.7,2.50773388]
[1771632152172,1.19369104,627.36,626.7,2.50773388]
[1771632154175,1.19369104,627.36,626.71,1.19073388]
[1771632157279,1.19369104,627.35,626.71,1.19073388]
[1771632158379,1.19369104,627.35,626.72,1.19073388]
[1771632159882,1.19369104,627.36,626.73,1.19073388]
[1771632160181,1.19369104,627.35,626.73,1.19073388]
[1771632162183,1.19369104,627.35,626.74,1.19073388]
[1771632163183,1.19369104,627.34,626.74,1.19073388]
[1771632164082,1.19369104,627.34,626.75,1.19073388]
[1771632168682,1.19369104,627.33,626.74,1.19073388]
[1771632168887,1.19369104,627.3,626.71,1.19073388]
[1771632169286,1.19369104,627.28,626.7,1.317]
[1771632169988,1.19369104,627.3,626.71,1.19073388]
[1771632172186,1.19369104,627.3,626.72,1.19073388]
[1771632178193,1.19369104,627.32,626.74,1.19073388]
[1771632180190,1.19369104,627.33,626.74,1.19073388]
[1771632180391,1.19369104,627.33,626.75,1.19073388]
[1771632180796,1.19369104,627.44,626.86,1.19073388]
[1771632180995,1.19369104,627.46,626.87,1.19073388]
[1771632181391,1.19369104,627.46,626.76,1.58903133]
[1771632181392,1.19369104,627.47,626.86,1.19073388]
[1771632183489,1.47117645,627.48,626.85,1.19073388]
[1771632185395,1.47117645,627.48,626.84,1.19073388]
[1771632186191,0.27748541,627.48,626.84,1.19073388]
[1771632188497,0.27748541,627.48,626.73,1.58903133]
[1771632188498,0.27748541,627.48,626.83,1.19073388]
[1771632188796,1.47117645,627.48,626.83,1.19073388]
[1771632189596,1.19369104,627.44,626.79,1.19073388]
[1771632190503,1.19369104,627.43,626.78,1.19073388]
[1771632190704,1.19369104,627.34,626.7,1.317]
[1771632191601,1.19369104,627.32,626.7,1.317]
[1771632193308,1.19369104,627.33,626.7,1.317]
[1771632199107,1.19369104,627.27,626.7,1.317]
[1771632200111,1.19369104,627.25,626.7,1.317]
[1771632200312,1.19369104,627.26,626.7,1.317]
[1771632201511,1.19369104,627.27,626.7,1.317]
[1771632204512,1.59264606,627.39,626.7,1.317]
[1771632204715,1.19310795,627.27,626.7,1.317]
[1771632205315,1.19310795,627.28,626.7,1.317]
[1771632209424,1.19310795,627.28,626.57,1.19122134]
[1771632211331,1.19310795,627.28,626.56,1.19122134]
[1771632212629,1.19310795,627.28,626.57,1.506]
[1771632214232,1.19310795,627.29,626.57,1.506]
[1771632219135,1.19310795,627.28,626.57,1.506]
[1771632226346,1.19310795,627.27,626.57,1.506]
[1771632228244,1.19310795,627.26,626.57,1.506]
[1771632230347,1.19310795,627.25,626.57,1.506]
[1771632231349,1.19310795,627.24,626.57,2.69722134]
[1771632232346,1.19310795,627.23,626.58,1.19122134]
[1771632233346,1.19310795,627.22,626.59,1.19122134]
[1771632234347,1.19310795,627.21,626.61,1.19122134]
[1771632235249,1.19310795,627.2,626.62,1.19122134]
[1771632236450,1.19310795,627.19,626.62,1.19122134]
[1771632238157,1.19310795,627.19,626.63,1.646]
[1771632239357,1.19310795,627.19,626.63,2.83722134]
[1771632241256,1.19310795,627.18,626.63,2.83722134]
[1771632242359,1.19310795,627.18,626.64,1.19122134]
[1771632243158,1.59264606,627.29,626.63,1.646]
[1771632243359,1.19704282,627.17,626.64,1.19573007]
[1771632248162,1.19704282,627.16,626.63,2.84173007]
[1771632249260,1.19704282,627.14,626.63,1.646]
[1771632249459,1.19704282,627.13,626.63,1.646]
[1771632251363,1.19704282,627.14,626.63,1.646]
[1771632251564,1.19704282,627.11,626.63,1.646]
[1771632252262,1.19704282,627.12,626.63,1.646]
[1771632252467,1.19704282,627.11,626.63,1.646]
[1771632252765,1.19704282,627.07,626.63,1.646]
[1771632253162,1.19704282,626.94,626.63,1.646]
[1771632254262,1.19704282,626.96,626.63,1.646]
[1771632255268,1.19704282,626.98,626.63,1.646]
[1771632256266,1.19704282,626.99,626.63,1.646]
[1771632257164,1.19704282,627.0,626.63,1.646]
[1771632258268,1.19704282,627.01,626.63,1.646]
[1771632259269,1.19704282,627.02,626.63,1.646]
[1771632260169,1.19704282,627.01,626.63,1.646]
[1771632260365,1.19704282,627.02,626.63,1.646]
[1771632261172,1.19704282,627.02,626.24,1.19573007]
[1771632261371,1.19704282,627.03,626.24,1.19573007]
[1771632262272,1.19704282,627.03,626.23,1.19573007]
[1771632263273,1.19704282,627.04,626.23,1.19573007]
[1771632264475,1.19704282,627.04,626.22,1.19573007]
[1771632264874,1.19704282,627.04,626.24,1.822]
[1771632266277,1.19704282,627.05,626.24,1.822]
[1771632269375,1.19704282,627.06,626.24,1.822]
[1771632270077,0.27768358,627.03,626.24,1.822]
[1771632272478,1.19704282,627.07,626.24,1.822]
[1771632273477,1.19704282,627.08,626.24,1.822]
[1771632273781,1.19704282,627.15,626.3,1.19573007]
[1771632274178,1.19704282,627.15,626.31,1.19573007]
[1771632274380,1.19704282,627.16,626.31,1.19573007]
[1771632275281,1.19704282,627.15,626.31,1.19573007]
[1771632275583,1.19704282,627.16,626.32,1.19573007]
[1771632275984,0.2776437,627.2,626.38,1.19573007]
[1771632278487,0.2776437,627.2,626.39,1.19573007]
[1771632282391,1.47468652,627.2,626.4,1.19573007]
[1771632285293,1.19704282,627.19,626.4,1.19573007]
[1771632287191,1.19704282,627.19,626.41,1.19573007]
[1771632287694,1.19704282,627.21,626.43,1.19573007]
[1771632287995,1.19704282,627.22,626.44,1.19573007]
[1771632288390,1.19704282,627.27,626.49,1.19573007]
[1771632288890,1.47464444,627.28,626.5,1.19573007]
[1771632289090,1.19704282,627.32,626.54,1.19573007]
[1771632293198,1.19704282,627.33,626.54,1.19573007]
[1771632294394,1.19704282,627.33,626.53,1.19573007]
[1771632297200,1.19704282,627.34,626.53,1.19573007]
[1771632298199,1.19704282,627.34,626.52,1.19573007]
[1771632303703,1.19704282,627.47,626.65,1.19573007]
[1771632304303,1.47457138,627.48,626.64,1.19573007]
[1771632305999,0.27752856,627.48,626.71,1.19573007]
[1771632306398,0.27752856,627.48,626.7,1.19573007]
[1771632308303,0.27752856,627.48,626.69,1.19573007]
[1771632310205,0.27752856,627.48,626.7,1.19573007]
[1771632310406,0.27752856,627.48,626.69,1.19573007]
[1771632314306,0.27752856,627.48,626.7,1.19573007]
[1771632314503,0.27752856,627.48,626.58,1.58903133]
[1771632314504,0.27752856,627.48,626.69,1.19573007]
[1771632315207,0.27752856,627.48,626.7,1.19573007]
[1771632315508,0.27752856,627.48,626.69,1.19573007]
[1771632316308,0.27752856,627.48,626.7,1.19573007]
[1771632318208,0.27752856,627.48,626.71,1.19573007]
[1771632320308,0.27752856,627.48,626.72,1.19573007]
[1771632323217,0.27752856,627.48,626.65,1.19573007]
[1771632323414,0.27752856,627.48,626.66,1.19573007]
[1771632326514,0.27752856,627.48,626.67,1.19573007]
[1771632328421,0.27752856,627.48,626.68,1.19573007]
[1771632329321,1.47457138,627.48,626.68,1.19573007]
[1771632330322,1.19704282,627.47,626.69,1.19573007]
[1771632331223,1.19704282,627.46,626.69,1.19573007]
[1771632331420,1.19704282,627.46,626.7,1.19573007]
[1771632332420,1.19704282,627.45,626.7,1.19573007]
[1771632333226,1.19704282,627.45,626.71,1.19573007]
[1771632333722,1.19704282,627.45,626.72,1.19573007]
[1771632336228,1.19704282,627.45,626.73,1.19573007]
[1771632337325,1.19704282,627.44,626.73,1.19573007]
[1771632339225,1.19704282,627.44,626.74,1.19573007]
[1771632340336,1.19704282,627.43,626.74,1.19573007]
[1771632340636,1.19704282,627.32,626.63,1.19573007]
[1771632341231,1.19704282,627.32,626.64,1.19573007]
[1771632342632,1.19704282,627.31,626.63,1.19573007]
[1771632342832,1.19704282,627.28,626.6,1.19573007]
[1771632343239,1.19704282,627.23,626.56,1.19573007]
[1771632343437,1.19704282,627.24,626.55,1.19573007]
[1771632343637,1.19704282,627.22,626.54,1.19573007]
[1771632343838,1.19704282,627.21,626.53,1.19573007]
[1771632344438,1.19704282,627.22,626.52,2.67573007]
[1771632344639,1.19704282,627.21,626.52,1.48]
[1771632344839,1.19704282,627.21,626.52,2.67573007]
[1771632345339,1.19704282,627.22,626.52,1.48]
[1771632347341,1.19704282,627.23,626.52,1.48]
[1771632349439,1.19704282,627.24,626.52,1.48]
[1771632352238,1.19704282,627.25,626.52,1.48]
[1771632356244,1.19704282,627.26,626.52,1.48]
[1771632360249,1.19704282,627.25,626.52,1.48]
[1771632360449,1.19704282,627.24,626.52,1.48]
[1771632362248,1.59264606,627.35,626.52,1.48]
[1771632362448,1.191206,627.24,626.52,1.48]
[1771632364151,1.191206,627.25,626.52,1.48]
[1771632364456,1.191206,627.25,626.46,1.1907641]
[1771632365251,1.191206,627.25,626.47,1.1907641]
[1771632365451,1.191206,627.24,626.47,1.1907641]
[1771632367756,1.191206,627.24,626.48,1.584]
[1771632370357,1.191206,627.24,626.48,2.7747641]
[1771632371358,1.191206,627.23,626.48,2.7747641]
[1771632375257,1.191206,627.23,626.49,1.1907641]
[1771632376459,1.191206,627.22,626.49,1.1907641]
[1771632377565,1.191206,627.23,626.51,1.1907641]
[1771632377865,1.59264606,627.35,626.48,1.584]
[1771632377866,1.191206,627.24,626.52,1.1907641]
[1771632378562,1.191206,627.26,626.54,1.1907641]
[1771632378762,1.191206,627.25,626.53,1.1907641]
[1771632379265,1.191206,627.24,626.54,1.1907641]
[1771632380261,1.191206,627.23,626.54,1.1907641]
[1771632381267,1.191206,627.22,626.53,1.1907641]
[1771632381562,1.191206,627.21,626.54,1.1907641]
[1771632382368,1.191206,627.2,626.54,1.1907641]
[1771632383266,1.191206,627.19,626.55,1.1907641]
[1771632384371,0.27752856,627.48,626.57,1.1907641]
[1771632384372,1.191206,627.18,626.57,1.1907641]
[1771632385568,1.191206,627.16,626.59,1.1907641]
[1771632386473,1.191206,627.15,626.59,1.1907641]
[1771632387373,1.191206,627.14,626.6,1.1907641]
[1771632391269,1.59264606,627.25,626.48,1.584]
[1771632391270,1.191206,627.12,626.58,1.1907641]
[1771632393375,1.191206,627.12,626.57,1.1907641]
[1771632410292,1.191206,627.11,626.57,1.1907641]
[1771632411492,1.191206,627.19,626.64,1.1907641]
[1771632412295,1.191206,627.22,626.66,1.1907641]
[1771632413395,1.191206,627.22,626.65,1.1907641]
[1771632414298,1.191206,627.23,626.65,1.1907641]
[1771632415394,1.191206,627.23,626.64,1.1907641]
[1771632418399,1.191206,627.24,626.64,1.1907641]
[1771632419401,1.191206,627.24,626.63,1.1907641]
[1771632424401,1.191206,627.25,626.63,1.1907641]
[1771632424702,1.59264606,627.36,626.52,1.58903133]
[1771632424906,1.19484905,627.25,626.63,1.19428211]
[1771632426308,1.19484905,627.25,626.62,1.19428211]
[1771632432211,1.19484905,627.26,626.63,1.19428211]
[1771632432415,0.27752856,627.48,626.67,1.19428211]
[1771632432416,1.19484905,627.31,626.67,1.19428211]
[1771632434214,1.19484905,627.33,626.68,1.19428211]
[1771632434415,1.19484905,627.38,626.72,1.19428211]
[1771632435318,1.19484905,627.39,626.72,1.19428211]
[1771632436317,1.19484905,627.39,626.71,1.19428211]
[1771632436618,1.19484905,627.41,626.73,1.19428211]
[1771632437314,1.19484905,627.41,626.72,1.19428211]
[1771632437820,1.19484905,627.42,626.73,1.19428211]
[1771632438419,1.19484905,627.46,626.75,1.19428211]
[1771632438817,1.19484905,627.45,626.75,1.19428211]
[1771632439317,1.19484905,627.46,626.74,1.19428211]
[1771632440116,1.19484905,627.47,626.75,1.19428211]
[1771632440419,1.47237761,627.48,626.76,1.19428211]
[1771632440622,0.27752856,627.48,626.76,1.19428211]
[1771632442321,0.27752856,627.48,626.75,1.19428211]
[1771632442722,1.19484905,627.5,626.75,1.19428211]
[1771632444320,1.19484905,627.51,626.74,1.19428211]
[1771632444526,1.19484905,627.5,626.74,1.19428211]
[1771632445427,1.19484905,627.51,626.74,1.19428211]
[1771632453430,1.19484905,627.5,626.74,1.19428211]
[1771632454429,1.19484905,627.49,626.74,1.19428211]
[1771632456433,1.19484905,627.49,626.63,1.58903133]
[1771632456434,1.19484905,627.49,626.75,1.19428211]
[1771632458437,1.19484905,627.48,626.75,1.19428211]
[1771632464342,1.19484905,627.48,626.76,1.19428211]
[1771632465142,1.19484905,627.49,626.77,1.19428211]
[1771632466241,1.19484905,627.48,626.77,1.19428211]
[1771632469346,1.19484905,627.47,626.78,1.19428211]
[1771632470440,1.19484905,627.46,626.78,1.19428211]
[1771632472346,1.19484905,627.46,626.79,1.19428211]
[1771632473247,1.19484905,627.45,626.79,1.19428211]
[1771632474248,1.19484905,627.44,626.79,1.19428211]
[1771632474452,1.19484905,627.44,626.8,1.19428211]
[1771632475247,1.19484905,627.43,626.81,1.19428211]
[1771632476451,1.19484905,627.42,626.82,1.19428211]
[1771632477548,0.27746992,627.55,626.83,1.19428211]
[1771632477549,1.19484905,627.41,626.83,1.19428211]
[1771632478454,1.19484905,627.4,626.84,1.19428211]
[1771632481354,1.19484905,627.39,626.85,1.19428211]
[1771632490364,1.19484905,627.39,626.86,1.19428211]
[1771632494561,1.19484905,627.34,626.82,1.19428211]
[1771632495263,1.19484905,627.34,626.81,1.19428211]
[1771632496262,1.19484905,627.34,626.8,1.19428211]
[1771632496765,1.19484905,627.33,626.79,1.19428211]
[1771632497465,1.19484905,627.33,626.78,1.19428211]
[1771632499362,1.19484905,627.34,626.77,1.19428211]
[1771632499968,1.19484905,627.33,626.76,1.19428211]
[1771632500267,1.19484905,627.33,626.77,1.402]
[1771632500465,1.19484905,627.32,626.77,1.402]
[1771632502465,1.19484905,627.31,626.77,1.402]
[1771632503369,1.19484905,627.32,626.77,1.402]
[1771632504472,1.19484905,627.33,626.77,1.402]
[1771632504971,1.19540487,627.33,626.77,1.402]
[1771632505367,1.19540487,627.36,626.77,2.59488833]
[1771632522782,1.19540487,627.34,626.77,1.402]
[1771632523084,1.19540487,627.33,626.77,1.402]
[1771632525790,1.19540487,627.23,626.77,1.402]
[1771632525989,1.19540487,627.22,626.77,1.402]
[1771632526188,1.19540487,627.23,626.77,1.402]
[1771632527290,1.19540487,627.24,626.77,1.402]
[1771632528889,1.19540487,627.25,626.77,1.402]
[1771632529088,1.19540487,627.41,626.78,1.19288833]
[1771632530193,1.19540487,627.41,626.79,1.19288833]
[1771632530393,1.19540487,627.41,626.78,1.19288833]
[1771632533696,1.19540487,627.46,626.83,1.19288833]
[1771632536304,1.19540487,627.46,626.82,1.19288833]
[1771632539205,1.19540487,627.47,626.82,1.19288833]
[1771632539805,3.98161516,628.14,626.87,1.19288833]
[1771632539806,1.19540487,627.51,626.87,1.19288833]
[1771632541206,1.19540487,627.54,626.88,1.19288833]
[1771632541706,1.19540487,627.54,626.77,2.99103133]
[1771632541707,1.19540487,627.5,626.85,1.19288833]
[1771632542310,1.19540487,627.51,626.84,1.19288833]
[1771632545114,1.19540487,627.49,626.82,1.19288833]
[1771632545314,1.19540487,627.47,626.8,1.19288833]
[1771632551415,1.19540487,627.48,626.8,1.19288833]
[1771632555522,1.19540487,627.46,626.79,1.19288833]
[1771632557224,1.19540487,627.47,626.79,1.19288833]
[1771632557428,1.19540487,627.46,626.79,1.19288833]
[1771632564134,1.19540487,627.49,626.82,1.19288833]
[1771632571234,1.19540487,627.48,626.83,1.19288833]
[1771632572234,5.57426123,628.38,626.85,1.19288833]
[1771632572235,1.19540487,627.47,626.85,1.19288833]
[1771632573232,1.59264606,627.58,626.72,11.61866899]
[1771632573233,1.19540487,627.44,626.87,1.19288833]
[1771632578341,1.19540487,627.44,626.88,1.19288833]
[1771632578938,1.19540487,627.46,626.9,1.19288833]
[1771632579241,2.38896909,627.69,626.58,1.249]
[1771632579242,1.19540487,627.53,626.96,1.19288833]
[1771632579438,1.19540487,627.55,626.98,1.19288833]
[1771632580538,5.57426123,628.45,626.97,1.19288833]
[1771632580539,1.19540487,627.56,626.97,1.19288833]
[1771632582240,1.19540487,627.57,626.96,1.19288833]
[1771632584448,1.19540487,627.58,626.95,1.19288833]
[1771632584648,1.19540487,627.58,626.96,1.19288833]
[1771632584848,1.19423272,627.58,626.96,1.19034416]
[1771632585247,1.19423272,627.59,626.95,1.19034416]
[1771632588257,1.19423272,627.59,626.94,1.19034416]
[1771632588958,1.19423272,627.63,626.98,1.19034416]
[1771632589358,1.19423272,627.63,626.97,1.19034416]
[1771632590656,1.59264606,627.75,626.97,1.19034416]
[1771632590657,1.19423272,627.64,626.97,1.19034416]
[1771632592460,1.19423272,627.69,627.02,1.19034416]
[1771632593358,1.19423272,627.7,627.01,1.19034416]
[1771632595360,1.19423272,627.71,627.0,1.19034416]
[1771632596665,1.19423272,627.8,627.09,1.19034416]
[1771632597362,1.19423272,627.81,627.08,1.19034416]
[1771632597865,5.57426123,628.7,626.82,12.48270569]
[1771632597866,1.19423272,627.85,627.12,1.19034416]
[1771632598266,1.19423272,627.86,627.11,1.19034416]
[1771632599369,1.19423272,627.87,627.1,1.19034416]
[1771632601370,1.19423272,627.9,627.12,1.19034416]
[1771632601673,1.19423272,627.92,627.13,1.19034416]
[1771632602171,1.19423272,627.94,627.14,1.19034416]
[1771632602373,1.19423272,627.95,627.13,1.19034416]
[1771632603275,1.19423272,627.95,627.12,1.19034416]
[1771632604277,1.19423272,627.96,627.12,1.19034416]
[1771632604476,1.19423272,628.01,627.17,1.19034416]
[1771632605375,1.19423272,628.08,627.22,1.19034416]
[1771632605573,1.19423272,628.09,627.22,1.19034416]